bitfinex/quotes_SOLUSD_20241121
["timestamp","ask_amount","ask_price","bid_price","bid_amount"]
[1732187109307,23.81067925,240.83,240.76,4.34069723]
[1732187110008,23.81067925,240.85,240.77,4.5896323]
[1732187110204,23.81067925,240.85,240.78,4.34069723]
[1732187110707,23.81067925,240.85,240.78,24.34069723]
[1732187111236,23.81067925,240.83,240.78,23.776884]
[1732187111528,23.81067925,240.87,240.79,28.93032953]
[1732187111733,6.0991,240.93,240.79,20.0]
[1732187111734,23.81067925,240.83,240.79,20.0]
[1732187111919,23.81067925,240.81,240.73,20.0]
[1732187112114,23.81067925,240.83,240.73,8.93032953]
[1732187112322,15.0991,240.89,240.73,8.93032953]
[1732187112323,23.81067925,240.81,240.74,4.5896323]
[1732187112621,15.0991,240.89,240.69,4.5896323]
[1732187112622,23.81067925,240.77,240.69,4.5896323]
[1732187113744,23.81067925,240.79,240.7,4.34069723]
[1732187113943,23.81067925,240.81,240.71,4.5896323]
[1732187114237,23.81067925,240.81,240.73,20.0]
[1732187114441,23.81067925,240.81,240.75,20.0]
[1732187114744,23.81067925,240.81,240.77,20.0]
[1732187115344,23.81067925,240.83,240.75,20.0]
[1732187115532,23.81067925,240.81,240.75,20.0]
[1732187115842,23.81067925,240.79,240.67,24.5896323]
[1732187116216,23.81067925,240.79,240.67,32.14120296]
[1732187116437,23.81067925,240.81,240.67,32.14120296]
[1732187116638,15.0991,240.89,240.68,27.55157066]
[1732187116639,23.81067925,240.83,240.68,27.55157066]
[1732187116840,23.81067925,240.81,240.68,32.14120296]
[1732187117138,23.81067925,240.81,240.7,20.0]
[1732187117339,23.81067925,240.81,240.73,23.776884]
[1732187117530,23.81067925,240.79,240.72,20.0]
[1732187118019,23.81067925,240.77,240.7,4.5896323]
[1732187118215,23.81067925,240.77,240.68,3.21087343]
[1732187119445,23.81067925,240.79,240.72,20.0]
[1732187120646,23.81067925,240.79,240.69,24.5896323]
[1732187120822,23.81067925,240.79,240.71,20.0]
[1732187121145,23.81067925,240.83,240.75,20.0]
[1732187121927,23.81067925,240.83,240.71,4.5896323]
[1732187121928,23.81067925,240.81,240.71,4.5896323]
[1732187122151,23.81067925,240.81,240.72,23.776884]
[1732187122447,23.81067925,240.81,240.74,23.776884]
[1732187122634,14.87404652,240.85,240.77,20.0]
[1732187122836,14.87404652,240.88,240.77,20.0]
[1732187123236,14.87404652,240.88,240.75,24.149]
[1732187124226,14.87404652,240.88,240.76,27.925884]
[1732187124426,14.87404652,240.9,240.79,27.925884]
[1732187124626,6.0991,240.93,240.8,20.0]
[1732187124627,3.05375445,240.89,240.8,20.0]
[1732187124850,23.78581799,240.91,240.8,20.0]
[1732187125062,29.88491799,240.93,240.8,24.5896323]
[1732187125353,3.05465732,240.92,240.8,24.5896323]
[1732187125647,29.88491799,240.93,240.8,24.5896323]
[1732187125824,3.05502345,240.92,240.8,24.5896323]
[1732187126148,23.78581799,240.95,240.84,20.0]
[1732187126348,3.05608956,240.94,240.84,20.0]
[1732187126544,7.94619016,240.94,240.84,20.0]
[1732187126732,23.78581799,240.95,240.84,20.0]
[1732187127249,23.78581799,240.95,240.81,24.5896323]
[1732187127558,23.78581799,240.95,240.85,20.0]
[1732187127855,30.32011799,240.99,240.89,20.0]
[1732187128024,3.05754206,240.98,240.89,20.0]
[1732187128230,3.05878235,240.97,240.89,20.0]
[1732187128427,30.32011799,240.99,240.89,20.0]
[1732187128736,23.78581799,240.97,240.89,20.0]
[1732187128933,23.78581799,240.93,240.89,20.0]
[1732187129248,6.5343,240.99,240.82,23.776884]
[1732187129249,23.78581799,240.91,240.82,23.776884]
[1732187129556,23.78581799,240.91,240.83,20.0]
[1732187129856,23.78581799,240.89,240.8,4.5896323]
[1732187130068,23.78581799,240.91,240.78,4.5896323]
[1732187130360,23.78581799,240.91,240.79,4.5896323]
[1732187131155,23.78581799,240.93,240.82,23.776884]
[1732187131343,3.0634364,240.92,240.83,20.0]
[1732187131546,3.0634364,240.91,240.83,20.0]
[1732187131748,23.78581799,240.93,240.83,20.0]
[1732187131943,3.06409421,240.92,240.83,20.0]
[1732187132253,23.78581799,240.95,240.85,20.0]
[1732187132481,3.06597531,240.94,240.85,20.0]
[1732187132644,6.5343,240.99,240.89,20.0]
[1732187132645,30.32011799,240.99,240.89,20.0]
[1732187132848,3.06658241,240.98,240.9,23.776884]
[1732187133054,23.78581799,241.03,240.91,20.0]
[1732187133239,7.97474144,241.02,240.93,20.0]
[1732187133835,3.06780771,241.02,240.95,20.0]
[1732187134059,3.06780771,241.01,240.95,20.0]
[1732187134260,6.2649,241.06,240.9,8.05955146]
[1732187134261,26.8536257,241.0,240.9,23.46991916]
[1732187134441,23.78581799,241.0,240.91,23.776884]
[1732187134642,23.78581799,241.02,240.94,20.0]
[1732187134857,3.06989289,241.01,240.94,20.0]
[1732187135066,23.78581799,241.02,240.94,20.0]
[1732187135355,3.06917926,241.01,240.92,20.0]
[1732187135669,23.78581799,240.98,240.92,20.0]
[1732187135839,23.78581799,240.96,240.88,15.3304]
[1732187136153,23.78581799,240.94,240.84,4.34069723]
[1732187136937,23.78581799,240.94,240.83,4.8389]
[1732187137267,3.07050905,240.93,240.83,4.8389]
[1732187137566,23.78581799,240.94,240.84,20.0]
[1732187137754,3.07127816,240.93,240.84,20.0]
[1732187137956,23.78581799,240.94,240.84,20.0]
[1732187138163,3.07116027,240.93,240.84,20.0]
[1732187138366,23.78581799,240.96,240.84,20.0]
[1732187138661,3.07134852,240.95,240.84,20.0]
[1732187138859,3.07134852,240.94,240.84,20.0]
[1732187139039,3.07134852,240.93,240.88,23.776884]
[1732187139242,4.91399639,240.99,240.9,23.776884]
[1732187139554,7.98597374,240.99,240.91,20.0]
[1732187139854,3.07180329,240.98,240.91,20.0]
[1732187140055,3.07180329,240.97,240.91,20.0]
[1732187140257,23.78581799,241.04,240.92,23.776884]
[1732187140468,7.9853714,241.03,240.93,20.0]
[1732187141864,23.78581799,241.02,240.93,20.0]
[1732187142169,23.78581799,240.98,240.9,4.5896323]
[1732187142463,23.78581799,240.96,240.88,20.0]
[1732187142973,23.78581799,240.98,240.85,4.34069723]
[1732187143156,3.07134087,240.97,240.86,4.5896323]
[1732187143342,23.78581799,240.98,240.86,24.5896323]
[1732187143537,3.07101503,240.97,240.87,24.34069723]
[1732187143878,23.78581799,240.98,240.88,24.5896323]
[1732187144039,3.07096387,240.97,240.88,24.5896323]
[1732187144239,23.78581799,240.98,240.88,24.5896323]
[1732187144668,3.07075735,240.97,240.88,24.5896323]
[1732187144845,23.78581799,240.98,240.88,24.5896323]
[1732187145046,3.07074481,240.97,240.88,24.5896323]
[1732187145247,23.78581799,241.0,240.88,24.5896323]
[1732187145442,3.07086229,240.99,240.88,24.5896323]
[1732187145642,3.07086229,240.98,240.88,24.5896323]
[1732187145968,23.78581799,241.0,240.88,24.5896323]
[1732187146170,3.07086981,240.99,240.9,20.0]
[1732187146361,30.05071799,241.06,240.94,20.0]
[1732187146545,7.98592579,241.05,240.94,20.0]
[1732187147252,23.78581799,241.0,240.91,20.0]
[1732187147560,23.78581799,240.98,240.9,3.46991916]
[1732187147868,23.78581799,240.98,240.89,20.0]
[1732187148258,23.78581799,240.96,240.89,20.0]
[1732187148460,3.07148839,240.95,240.85,20.0]
[1732187148768,14.85895459,240.97,240.85,24.5896323]
[1732187148977,3.07145403,240.96,240.86,8.93032953]
[1732187149267,14.85895459,240.99,240.87,20.0]
[1732187149466,3.07167224,240.98,240.87,20.0]
[1732187149644,17.93062683,240.97,240.88,23.776884]
[1732187149846,14.85895459,240.95,240.87,20.0]
[1732187150065,3.07167224,240.94,240.87,20.0]
[1732187150271,14.85895459,240.97,240.87,20.0]
[1732187150566,3.07156963,240.96,240.87,20.0]
[1732187150867,14.85895459,240.97,240.87,20.0]
[1732187151070,14.85895459,240.99,240.87,20.0]
[1732187151255,3.07178985,240.98,240.89,20.0]
[1732187151573,14.85895459,241.01,240.89,24.5896323]
[1732187151750,3.07174783,241.0,240.89,24.5896323]
[1732187151949,3.07174783,240.99,240.89,24.5896323]
[1732187152150,3.07174783,240.98,240.89,24.5896323]
[1732187152363,14.85895459,241.01,240.89,24.5896323]
[1732187152669,3.07124034,241.0,240.89,24.5896323]
[1732187152849,17.93019493,240.99,240.89,20.0]
[1732187153166,3.07124034,240.98,240.89,20.0]
[1732187153474,17.92912733,240.97,240.86,27.925884]
[1732187153671,14.85895459,240.97,240.87,20.0]
[1732187154367,14.85895459,240.97,240.86,23.776884]
[1732187154368,14.85895459,240.95,240.85,20.0]
[1732187154665,14.85895459,240.95,240.84,8.05955146]
[1732187155064,14.85895459,240.95,240.85,4.5896323]
[1732187155444,3.06972523,240.94,240.85,4.5896323]
[1732187155647,14.85895459,240.95,240.85,4.5896323]
[1732187156076,14.85895459,240.97,240.85,24.5896323]
[1732187156374,3.07018649,240.96,240.86,24.34069723]
[1732187156553,14.85895459,240.99,240.87,24.5896323]
[1732187156754,3.07038107,240.98,240.87,24.5896323]
[1732187156968,3.07038107,240.97,240.87,24.5896323]
[1732187157169,14.85895459,240.99,240.87,24.5896323]
[1732187157473,14.85895459,240.97,240.87,4.5896323]
[1732187157669,3.07091987,240.96,240.86,20.0]
[1732187157844,14.85895459,240.97,240.86,20.0]
[1732187158043,14.85895459,240.95,240.86,20.0]
[1732187158249,3.0720918,240.94,240.84,23.46991916]
[1732187158478,14.85895459,240.95,240.84,23.46991916]
[1732187158654,3.07214101,240.94,240.84,23.46991916]
[1732187158847,14.85895459,240.95,240.84,23.46991916]
[1732187159167,3.07218765,240.94,240.84,23.46991916]
[1732187159374,14.85895459,240.95,240.84,23.46991916]
[1732187159676,3.07319995,240.94,240.84,23.46991916]
[1732187159975,15.3724,241.05,240.88,20.0]
[1732187160164,14.85895459,241.0,240.9,20.0]
[1732187160367,7.99073413,240.99,240.91,4.34069723]
[1732187160874,3.07357949,240.98,240.9,4.5896323]
[1732187161054,3.07357949,240.97,240.9,4.5896323]
[1732187161250,4.91965199,240.99,240.9,4.5896323]
[1732187161554,3.07474429,240.98,240.9,4.5896323]
[1732187161755,3.07474429,240.97,240.9,4.5896323]
[1732187161975,4.91965199,240.99,240.9,4.5896323]
[1732187162274,3.07486461,240.98,240.9,4.5896323]
[1732187162445,3.07486461,240.97,240.9,4.5896323]
[1732187162650,3.07486461,240.96,240.9,4.5896323]
[1732187162854,4.91965199,240.99,240.9,4.5896323]
[1732187163065,3.07563621,240.98,240.9,4.5896323]
[1732187163256,3.07563621,240.97,240.9,4.5896323]
[1732187163455,3.07563621,240.96,240.9,4.5896323]
[1732187163668,4.91965199,240.99,240.9,4.5896323]
[1732187164153,3.07725664,240.98,240.9,4.5896323]
[1732187164359,3.07725664,240.97,240.9,4.5896323]
[1732187164573,3.07725664,240.96,240.9,4.5896323]
[1732187164748,3.07725664,240.95,240.9,4.5896323]
[1732187165065,4.91965199,240.99,240.9,4.5896323]
[1732187165254,3.07989588,240.98,240.9,4.5896323]
[1732187165467,3.07989588,240.97,240.9,4.5896323]
[1732187165661,3.07989588,240.96,240.91,23.776884]
[1732187165866,3.07989588,240.95,240.92,20.0]
[1732187166181,3.07989588,240.94,240.92,20.0]
[1732187166377,3.07989588,240.93,240.92,20.0]
[1732187166568,3.07989588,240.98,240.92,20.0]
[1732187166758,14.85895459,241.0,240.92,20.0]
[1732187166954,8.02243887,240.99,240.92,20.0]
[1732187167154,3.08555341,240.98,240.92,20.0]
[1732187167351,8.02243887,240.97,240.92,20.0]
[1732187167658,8.02243887,240.96,240.92,20.0]
[1732187167859,14.85895459,241.0,240.92,20.0]
[1732187167860,8.02243887,240.95,240.92,20.0]
[1732187168073,3.08555341,240.94,240.92,20.0]
[1732187168255,3.08555341,240.93,240.92,20.0]
[1732187168573,3.08555341,240.93,240.86,20.0]
[1732187168776,3.08555341,240.92,240.86,20.0]
[1732187168981,3.08555341,240.91,240.86,20.0]
[1732187169150,3.09114093,240.9,240.86,20.0]
[1732187169481,4.94115115,240.93,240.86,20.0]
[1732187169668,3.09127543,240.92,240.86,20.0]
[1732187169873,3.09127543,240.91,240.87,23.776884]
[1732187170062,3.09127543,240.9,240.88,20.0]
[1732187170255,4.94115115,240.94,240.88,20.0]
[1732187170584,3.09312249,240.93,240.9,20.0]
[1732187170765,3.09312249,240.92,240.9,20.0]
[1732187170965,3.09312249,240.91,240.9,43.776884]
[1732187171169,3.09312249,240.91,240.86,20.0]
[1732187171355,3.09312249,240.9,240.87,23.776884]
[1732187171551,4.94115115,240.93,240.88,20.0]
[1732187171774,22.89314603,240.92,240.88,20.0]
[1732187172088,8.03419144,240.91,240.86,20.0]
[1732187172253,3.09304029,240.9,240.87,24.5896323]
[1732187172450,3.09304029,240.89,240.87,28.93032953]
[1732187172759,14.85895459,240.99,240.87,28.93032953]
[1732187172955,8.04320243,240.98,240.88,23.776884]
[1732187173161,8.04320243,240.97,240.89,20.0]
[1732187173383,8.04320243,240.96,240.91,20.0]
[1732187173551,8.04320243,240.95,240.91,20.0]
[1732187173752,8.04320243,240.94,240.91,20.0]
[1732187173979,15.3724,241.05,240.95,23.776884]
[1732187174286,6.2649,241.06,240.93,20.0]
[1732187174287,14.85895459,241.02,240.96,4.34069723]
[1732187174468,14.85895459,241.01,240.93,23.776884]
[1732187174657,14.85895459,241.03,240.93,23.776884]
[1732187175357,14.85895459,241.01,240.93,23.776884]
[1732187175864,14.85895459,241.03,240.94,24.71156651]
[1732187176162,14.85895459,241.03,240.94,20.0]
[1732187176362,14.85895459,241.01,240.94,20.0]
[1732187177665,14.85895459,240.99,240.93,24.94907667]
[1732187177988,14.85895459,241.01,240.94,24.94907667]
[1732187178279,14.85895459,241.01,240.94,29.66064318]
[1732187178666,14.85895459,241.03,240.94,29.66064318]
[1732187178988,14.85895459,241.05,240.98,20.0]
[1732187180277,14.85895459,241.07,241.0,20.0]
[1732187180484,14.85895459,241.09,241.0,20.0]
[1732187181490,14.85895459,241.09,241.01,23.776884]
[1732187181671,14.85895459,241.09,241.02,20.0]
[1732187182367,21.13750068,241.15,241.04,20.0]
[1732187182566,14.85895459,241.15,241.06,20.0]
[1732187182769,6.5022,241.18,241.1,20.0]
[1732187183085,14.85895459,241.15,241.1,20.0]
[1732187183488,6.5022,241.18,241.08,20.0]
[1732187183489,14.85895459,241.13,241.08,20.0]
[1732187183696,14.85895459,241.09,241.0,20.0]
[1732187183993,14.85895459,241.09,241.03,23.776884]
[1732187184288,14.85895459,241.14,241.04,33.42402057]
[1732187184684,14.85895459,241.14,241.06,20.0]
[1732187184993,6.5022,241.18,241.08,20.0]
[1732187184994,14.85895459,241.12,241.08,20.0]
[1732187185982,3.08904299,241.11,241.08,20.0]
[1732187186187,17.94799758,241.1,241.04,3.76337739]
[1732187186386,3.08904299,241.09,241.04,3.76337739]
[1732187186589,3.08904299,241.08,241.04,3.76337739]
[1732187186778,3.08904299,241.07,241.04,3.76337739]
[1732187187091,14.85895459,241.1,241.04,3.76337739]
[1732187187292,3.08795895,241.09,241.04,3.76337739]
[1732187187588,3.08795895,241.08,241.04,3.76337739]
[1732187187772,3.08795895,241.07,241.04,3.76337739]
[1732187187978,14.85895459,241.1,241.04,3.76337739]
[1732187188176,3.08697992,241.09,241.04,3.76337739]
[1732187188388,3.08697992,241.08,241.04,3.76337739]
[1732187188595,14.85895459,241.08,241.04,3.76337739]
[1732187188798,3.08624076,241.07,241.04,3.76337739]
[1732187189101,14.85895459,241.07,241.04,3.76337739]
[1732187189302,3.08610404,241.06,241.04,3.76337739]
[1732187189484,14.85895459,241.07,241.04,3.76337739]
[1732187189891,14.85895459,241.09,241.04,3.76337739]
[1732187190092,3.08563011,241.08,241.04,3.76337739]
[1732187190298,3.08541816,241.07,241.0,20.0]
[1732187190605,14.85895459,241.09,241.02,20.0]
[1732187190796,14.85895459,241.09,241.04,20.0]
[1732187190797,3.08491712,241.08,241.04,20.0]
[1732187191002,14.85895459,241.09,241.05,9.66064318]
[1732187191205,3.08484236,241.08,241.05,9.66064318]
[1732187191504,14.85895459,241.09,241.06,20.0]
[1732187191701,14.85895459,241.11,241.06,29.66064318]
[1732187192003,3.08398115,241.1,241.08,20.0]
[1732187192195,14.85895459,241.13,241.08,24.71156651]
[1732187192379,3.0825701,241.12,241.08,29.66064318]
[1732187192577,14.85895459,241.15,241.08,29.66064318]
[1732187192799,0.89218048,241.14,241.08,29.66064318]
[1732187192998,14.85895459,241.15,241.08,29.66064318]
[1732187193408,14.85895459,241.13,241.08,29.66064318]
[1732187195286,14.85895459,241.15,241.1,20.0]
[1732187195494,14.85895459,241.17,241.11,4.71156651]
[1732187195794,14.85895459,241.19,241.11,9.66064318]
[1732187196000,14.85895459,241.19,241.12,24.94907667]
[1732187196203,14.85895459,241.21,241.13,4.71156651]
[1732187196511,14.85895459,241.21,241.14,4.94907667]
[1732187196810,14.85895459,241.23,241.15,24.71156651]
[1732187197011,14.85895459,241.23,241.15,29.66064318]
[1732187197698,14.85895459,241.25,241.17,20.0]
[1732187197903,14.85895459,241.25,241.19,20.0]
[1732187198314,14.85895459,241.29,241.21,20.0]
[1732187198611,14.85895459,241.29,241.22,4.71156651]
[1732187198990,14.85895459,241.33,241.26,20.0]
[1732187199201,14.85895459,241.33,241.24,20.0]
[1732187199402,14.85895459,241.31,241.24,20.0]
[1732187199604,14.85895459,241.31,241.24,3.76337739]
[1732187199908,14.85895459,241.29,241.24,3.76337739]
[1732187200112,14.85895459,241.25,241.24,3.76337739]
[1732187200307,14.85895459,241.25,241.16,20.0]
[1732187200504,14.85895459,241.21,241.16,20.0]
[1732187200822,14.85895459,241.23,241.16,33.42402057]
[1732187201712,14.85895459,241.21,241.16,33.42402057]
[1732187202014,14.85895459,241.19,241.16,13.42402057]
[1732187202312,14.85895459,241.19,241.16,9.66064318]
[1732187202510,14.85895459,241.17,241.16,9.66064318]
[1732187202702,14.85895459,241.17,241.1,9.66064318]
[1732187203817,14.85895459,241.19,241.1,9.66064318]
[1732187204387,6.5783,241.29,241.11,27.54026139]
[1732187204600,14.85895459,241.24,241.13,23.776884]
[1732187204803,14.85895459,241.24,241.16,20.0]
[1732187204997,14.85895459,241.24,241.17,8.69883279]
[1732187205219,14.85895459,241.24,241.18,20.0]
[1732187206619,23.72156073,241.23,241.18,20.0]
[1732187206989,6.5783,241.29,241.2,20.0]
[1732187207215,3.06742605,241.28,241.22,20.0]
[1732187207415,23.72156073,241.29,241.24,20.0]
[1732187207716,23.72156073,241.29,241.24,29.94014318]
[1732187209289,23.72156073,241.31,241.26,20.0]
[1732187209496,23.72156073,241.29,241.26,20.0]
[1732187209799,23.72156073,241.29,241.25,20.0]
[1732187210009,21.196,241.35,241.24,13.92740946]
[1732187210010,23.72156073,241.26,241.24,13.92740946]
[1732187210316,23.72156073,241.26,241.16,3.98726628]
[1732187210518,23.72156073,241.17,241.16,3.98726628]
[1732187211318,23.72156073,241.19,241.16,3.98726628]
[1732187211516,23.72156073,241.21,241.17,5.22857667]
[1732187211823,23.72156073,241.19,241.18,20.0]
[1732187212189,23.72156073,241.21,241.18,20.0]
[1732187213224,23.72156073,241.21,241.19,20.0]
[1732187213922,23.72156073,241.23,241.19,24.71156651]
[1732187214223,23.72156073,241.25,241.2,29.94014318]
[1732187214724,23.72156073,241.25,241.2,33.92740946]
[1732187215109,23.72156073,241.27,241.22,23.776884]
[1732187215316,23.72156073,241.29,241.23,33.92740946]
[1732187215696,23.72156073,241.31,241.23,33.92740946]
[1732187216022,23.72156073,241.31,241.25,20.0]
[1732187216229,23.72156073,241.31,241.26,23.98726628]
[1732187216701,23.72156073,241.31,241.26,33.92740946]
[1732187216902,23.72156073,241.31,241.27,24.71156651]
[1732187217117,23.72156073,241.31,241.27,29.94014318]
[1732187219205,23.72156073,241.31,241.27,33.92740946]
[1732187219911,23.72156073,241.31,241.27,33.90740946]
[1732187220599,23.72156073,241.29,241.27,3.98726628]
[1732187220804,6.284,241.4,241.3,20.0]
[1732187221000,3.06676383,241.39,241.35,20.0]
[1732187221302,4.90629919,241.44,241.4,20.0]
[1732187221502,15.7129,241.54,241.46,20.0]
[1732187221705,6.0303,241.55,241.48,20.0]
[1732187221907,6.0303,241.55,241.5,20.0]
[1732187222116,0.6897,241.59,241.52,20.0]
[1732187222296,0.6897,241.59,241.54,20.0]
[1732187222495,23.72156073,241.56,241.54,20.0]
[1732187222701,0.6897,241.59,241.54,26.38623021]
[1732187222910,23.72156073,241.57,241.54,32.89370041]
[1732187223103,0.6897,241.59,241.56,20.0]
[1732187223310,0.6897,241.59,241.58,20.0]
[1732187223600,0.6897,241.59,241.49,5.39266739]
[1732187223800,23.72156073,241.5,241.49,25.39266739]
[1732187224105,23.72156073,241.5,241.43,5.39266739]
[1732187224328,47.49844473,241.44,241.43,11.7788976]
[1732187224621,23.776884,241.43,241.36,5.39266739]
[1732187224826,47.49844473,241.37,241.36,5.39266739]
[1732187224997,47.49844473,241.37,241.35,6.38623021]
[1732187224998,23.776884,241.36,241.35,6.38623021]
[1732187225199,23.776884,241.36,241.33,6.5074702]
[1732187225419,23.776884,241.36,241.33,12.89370041]
[1732187225626,23.776884,241.34,241.33,6.5074702]
[1732187225798,23.72156073,241.38,241.34,5.92500247]
[1732187226000,23.72156073,241.36,241.35,11.90013759]
[1732187226417,23.72156073,241.38,241.36,20.0]
[1732187227038,23.72156073,241.38,241.37,32.43247267]
[1732187227414,23.72156073,241.4,241.38,20.0]
[1732187227614,23.72156073,241.4,241.39,26.5074702]
[1732187227817,23.72156073,241.42,241.39,37.82514006]
[1732187228230,23.72156073,241.42,241.4,20.0]
[1732187228533,23.72156073,241.42,241.41,26.5074702]
[1732187229338,47.49844473,241.42,241.41,26.5074702]
[1732187229518,47.49844473,241.42,241.41,20.0]
[1732187229719,23.776884,241.41,241.36,20.0]
[1732187230027,23.72156073,241.37,241.35,6.5074702]
[1732187231218,23.72156073,241.37,241.36,25.92500247]
[1732187231537,23.72156073,241.37,241.36,32.43247267]
[1732187231915,47.49844473,241.37,241.3,5.39266739]
[1732187232109,23.72156073,241.31,241.3,17.82514006]
[1732187232511,23.72156073,241.33,241.3,17.82514006]
[1732187232738,23.72156073,241.33,241.31,12.43247267]
[1732187234131,6.3214,241.36,241.31,12.43247267]
[1732187234322,23.72156073,241.34,241.31,12.43247267]
[1732187234639,23.72156073,241.32,241.31,17.82514006]
[1732187234825,23.72156073,241.32,241.31,37.82514006]
[1732187235144,23.72156073,241.34,241.32,20.0]
[1732187235319,23.72156073,241.34,241.17,1.12163017]
[1732187235320,47.44312146,241.33,241.16,4.8389]
[1732187235645,23.72156073,241.23,241.17,10.5002826]
[1732187235820,23.72156073,241.23,241.18,5.49708563]
[1732187236021,23.72156073,241.23,241.19,5.00319697]
[1732187236323,23.72156073,241.24,241.2,5.49708563]
[1732187237531,23.72156073,241.24,241.21,20.0]
[1732187237738,23.72156073,241.24,241.22,5.49708563]
[1732187238125,23.776884,241.35,241.23,20.0]
[1732187238337,23.72156073,241.32,241.25,20.0]
[1732187238638,23.72156073,241.26,241.25,20.0]
[1732187238815,18.2244751,241.26,241.25,20.0]
[1732187239019,18.2244751,241.26,241.24,20.0]
[1732187239337,23.72156073,241.25,241.24,20.0]
[1732187240433,23.72156073,241.25,241.23,20.0]
[1732187241327,23.72156073,241.25,241.17,5.67637513]
[1732187241328,23.72156073,241.25,241.18,5.00319697]
[1732187241647,23.72156073,241.32,241.18,5.00319697]
[1732187241648,23.72156073,241.21,241.19,5.10007389]
[1732187241831,24.276884,241.35,241.19,5.10007389]
[1732187242029,23.72156073,241.24,241.2,10.6795721]
[1732187242227,23.72156073,241.24,241.21,5.10007389]
[1732187242535,23.72156073,241.24,241.22,20.0]
[1732187242718,23.72156073,241.24,241.22,30.77644902]
[1732187243238,23.72156073,241.26,241.23,5.10007389]
[1732187243443,23.72156073,241.28,241.24,25.67637513]
[1732187243741,23.72156073,241.32,241.26,20.0]
[1732187243927,23.72156073,241.34,241.28,20.0]
[1732187244130,23.72156073,241.34,241.3,20.0]
[1732187244330,23.72156073,241.36,241.32,20.0]
[1732187244531,23.72156073,241.36,241.34,20.0]
[1732187244729,23.72156073,241.38,241.34,25.00319697]
[1732187244926,23.72156073,241.44,241.36,20.0]
[1732187245129,1.0,241.57,241.36,20.0]
[1732187245130,6.9203,241.59,241.41,23.776884]
[1732187245321,23.72156073,241.53,241.44,20.0]
[1732187245521,3.06961423,241.52,241.46,20.0]
[1732187245741,3.06961423,241.51,241.48,20.0]
[1732187245918,23.72156073,241.53,241.49,5.00319697]
[1732187246238,23.72156073,241.56,241.5,20.0]
[1732187246442,23.72156073,241.58,241.51,5.00319697]
[1732187246620,23.72156073,241.58,241.52,20.0]
[1732187246825,23.72156073,241.58,241.54,20.0]
[1732187247032,23.72156073,241.58,241.55,5.00319697]
[1732187247244,23.72156073,241.58,241.56,20.0]
[1732187248651,0.6897,241.59,241.56,20.0]
[1732187248857,6.43622652,241.76,241.49,0.5]
[1732187248858,23.72156073,241.64,241.58,20.0]
[1732187249036,23.72156073,241.6,241.58,20.0]
[1732187249627,23.72156073,241.6,241.52,20.0]
[1732187249854,23.72156073,241.68,241.52,25.00319697]
[1732187249855,23.72156073,241.55,241.52,25.00319697]
[1732187250030,23.72156073,241.57,241.53,5.00319697]
[1732187250234,23.72156073,241.57,241.54,20.0]
[1732187250454,0.5,241.71,241.54,20.0]
[1732187250455,6.93622652,241.76,241.54,25.00319697]
[1732187250751,23.72156073,241.63,241.56,20.0]
[1732187250941,23.72156073,241.61,241.58,20.0]
[1732187251249,23.72156073,241.61,241.6,20.0]
[1732187251647,23.72156073,241.61,241.58,20.0]
[1732187251865,23.72156073,241.63,241.58,20.0]
[1732187252150,23.72156073,241.64,241.6,20.0]
[1732187252354,23.72156073,241.62,241.6,20.0]
[1732187254657,23.72156073,241.62,241.61,25.67637513]
[1732187254838,23.776884,241.71,241.62,20.0]
[1732187255033,23.72156073,241.63,241.62,20.0]
[1732187255234,23.72156073,241.68,241.64,20.0]
[1732187255235,23.776884,241.67,241.64,20.0]
[1732187255454,23.72156073,241.68,241.64,25.67637513]
[1732187255850,23.72156073,241.65,241.64,25.67637513]
[1732187256564,23.72156073,241.65,241.6,20.0]
[1732187257076,23.72156073,241.61,241.6,20.0]
[1732187258257,23.72156073,241.65,241.6,35.0013469]
[1732187258467,23.72156073,241.65,241.61,10.26961168]
[1732187258636,23.72156073,241.65,241.62,20.0]
[1732187258833,23.72156073,241.65,241.62,25.26641471]
[1732187259162,23.72156073,241.65,241.64,20.0]
[1732187259661,23.72156073,241.67,241.64,20.0]
[1732187259837,23.72156073,241.69,241.65,20.0]
[1732187260039,23.72156073,241.69,241.65,29.99814993]
[1732187260244,23.72156073,241.69,241.65,34.72385602]
[1732187260557,23.72156073,241.71,241.65,34.72385602]